bitfinex/quotes_BTCUSD_20260117
["timestamp","ask_amount","ask_price","bid_price","bid_amount"]
[1768611412305,0.06285552,95457.0,95453.0,0.01047636]
[1768611412485,0.01047592,95457.0,95453.0,0.01047636]
[1768611413140,0.06285565,95457.0,95453.0,0.01047636]
[1768611413681,0.01047592,95457.0,95453.0,0.01047636]
[1768611414324,0.06285559,95457.0,95453.0,0.01047636]
[1768611414538,0.06285559,95457.0,95453.0,0.01039727]
[1768611415564,0.01047603,95456.0,95453.0,0.01039727]
[1768611418269,0.01047592,95457.0,95453.0,0.06277886]
[1768611418606,0.01047592,95457.0,95453.0,0.01039727]
[1768611418989,0.01047603,95456.0,95453.0,0.01039727]
[1768611419190,0.06285618,95456.0,95453.0,0.01039727]
[1768611419551,0.01047603,95456.0,95453.0,0.01039727]
[1768611420294,0.01047603,95456.0,95452.0,0.01047646]
[1768611420981,0.01047603,95456.0,95452.0,0.06285849]
[1768611421229,0.01047603,95456.0,95453.0,0.01047636]
[1768611421648,0.01047592,95457.0,95453.0,0.06285802]
[1768611421853,0.01047592,95457.0,95454.0,0.01047625]
[1768611423549,0.01047581,95458.0,95454.0,0.01047625]
[1768611424054,0.01047592,95457.0,95454.0,0.01047625]
[1768611424553,0.01047592,95457.0,95454.0,0.01039716]
[1768611425911,0.01047581,95458.0,95454.0,0.01039716]
[1768611430678,0.01047581,95458.0,95454.0,0.01031806]
[1768611430857,0.01047581,95458.0,95454.0,0.06269929]
[1768611431059,0.01047581,95458.0,95454.0,0.01031806]
[1768611431812,0.01047581,95458.0,95454.0,0.01012556]
[1768611431927,0.01047581,95458.0,95454.0,0.00993308]
[1768611432752,0.01047592,95457.0,95454.0,0.00993308]
[1768611434582,0.01047581,95458.0,95454.0,0.06231422]
[1768611434780,0.06285495,95458.0,95454.0,0.00993308]
[1768611435394,0.01047581,95458.0,95454.0,0.00993308]
[1768611438062,0.01047581,95458.0,95454.0,0.00985399]
[1768611438216,0.06285492,95458.0,95454.0,0.00966152]
[1768611438632,0.06285493,95458.0,95454.0,0.00966152]
[1768611439013,0.01047592,95457.0,95454.0,0.00966152]
[1768611441965,0.01047592,95457.0,95453.0,0.01047636]
[1768611442535,0.01047592,95457.0,95454.0,0.01047625]
[1768611448401,0.06285557,95457.0,95454.0,0.01047625]
[1768611448618,0.01047603,95456.0,95453.0,0.01047636]
[1768611449919,0.01047603,95456.0,95452.0,0.01047646]
[1768611450584,0.01047603,95456.0,95452.0,0.06285868]
[1768611451250,0.01047603,95456.0,95453.0,0.01047636]
[1768611452586,0.06285569,95457.0,95453.0,0.01047636]
[1768611452776,0.01047592,95457.0,95453.0,0.06285803]
[1768611452986,0.01047592,95457.0,95453.0,0.01047636]
[1768611453191,0.01047592,95457.0,95453.0,0.06285809]
[1768611453395,0.01047592,95457.0,95453.0,0.01047636]
[1768611453952,0.01047592,95457.0,95453.0,0.0628581]
[1768611454144,0.01047592,95457.0,95453.0,0.01047636]
[1768611454563,0.01038525,95457.0,95453.0,0.01047636]
[1768611455011,0.01038525,95457.0,95454.0,0.01047625]
[1768611455237,0.01047581,95458.0,95454.0,0.01047625]
[1768611456094,0.06285486,95458.0,95454.0,0.01047625]
[1768611456295,0.01047592,95457.0,95453.0,0.01047636]
[1768611456513,0.01047592,95457.0,95453.0,0.06285814]
[1768611457612,0.01047592,95457.0,95453.0,0.01047636]
[1768611458528,0.01047603,95456.0,95453.0,0.01047636]
[1768611465009,0.01047603,95456.0,95453.0,0.06285814]
[1768611465235,0.01047603,95456.0,95453.0,0.01047636]
[1768611466662,0.01047592,95457.0,95453.0,0.06285807]
[1768611466952,0.01047592,95457.0,95453.0,0.01047636]
[1768611468374,0.01047592,95457.0,95453.0,0.01040741]
[1768611469764,0.01047592,95457.0,95451.0,0.01047657]
[1768611469765,0.05253382,95463.0,95457.0,0.05237931]
[1768611469974,0.01063266,95463.0,95460.0,0.01047559]
[1768611470123,0.0001574,95463.0,95460.0,0.01047559]
[1768611470325,0.01063266,95463.0,95460.0,0.01047559]
[1768611470533,0.0001574,95463.0,95460.0,0.01047559]
[1768611470937,0.0001574,95463.0,95460.0,0.06285306]
[1768611471148,0.0001574,95463.0,95460.0,0.01047559]
[1768611471347,0.01063266,95463.0,95460.0,0.01047559]
[1768611474965,0.0001574,95463.0,95460.0,0.01047559]
[1768611475159,0.01047482,95467.0,95461.0,0.01047548]
[1768611475160,0.01047493,95466.0,95461.0,0.01047548]
[1768611475356,0.01047504,95465.0,95461.0,0.05643394]
[1768611475564,0.01047504,95465.0,95462.0,0.01047537]
[1768611479176,0.01047471,95468.0,95463.0,0.01047526]
[1768611479376,0.01047471,95468.0,95465.0,0.01047504]
[1768611479713,0.0104746,95469.0,95465.0,0.00791934]
[1768611479916,0.01047471,95468.0,95465.0,0.00791934]
[1768611480965,0.06284833,95468.0,95464.0,0.01047515]
[1768611481168,0.01047482,95467.0,95464.0,0.01047515]
[1768611481755,0.01047471,95468.0,95464.0,0.06285082]
[1768611481995,0.01047471,95468.0,95464.0,0.01047515]
[1768611482346,0.01047482,95467.0,95464.0,0.01047515]
[1768611483366,0.01047493,95466.0,95463.0,0.01047526]
[1768611484179,0.01047482,95467.0,95464.0,0.01047515]
[1768611484601,0.01047482,95467.0,95464.0,0.0104062]
[1768611485122,0.01047482,95467.0,95463.0,0.01047526]
[1768611485287,0.06284833,95468.0,95464.0,0.01047515]
[1768611485488,0.01047482,95467.0,95464.0,0.00959035]
[1768611486106,0.01047482,95467.0,95463.0,0.01047526]
[1768611486305,0.01047482,95467.0,95463.0,0.00906697]
[1768611486516,0.01047493,95466.0,95463.0,0.00906697]
[1768611487063,0.01047493,95466.0,95462.0,0.01047537]
[1768611488074,0.06284965,95466.0,95462.0,0.01047537]
[1768611488210,0.01047493,95466.0,95462.0,0.0628522]
[1768611489013,0.01047493,95466.0,95462.0,0.01047537]
[1768611489266,0.01047493,95466.0,95462.0,0.06285222]
[1768611489697,0.01047504,95465.0,95462.0,0.01047537]
[1768611490310,0.06285094,95464.0,95460.0,0.01047559]
[1768611490516,0.01047526,95463.0,95456.0,0.01047603]
[1768611490657,0.01047559,95460.0,95456.0,0.01047603]
[1768611491095,0.0104757,95459.0,95456.0,0.01047603]
[1768611491293,0.0104757,95459.0,95453.0,0.05643482]
[1768611491294,0.06285489,95458.0,95453.0,0.05643482]
[1768611491511,0.05237977,95457.0,95453.0,0.04595846]
[1768611491798,0.0104757,95459.0,95453.0,0.04595846]
[1768611492106,0.01047592,95457.0,95454.0,0.01047625]
[1768611493068,0.01047592,95457.0,95454.0,0.13743625]
[1768611494952,0.01047592,95457.0,95454.0,0.18981748]
[1768611495742,0.01047581,95458.0,95454.0,0.13743625]
[1768611496105,0.01047581,95458.0,95454.0,0.1898171]
[1768611496504,0.01047581,95458.0,95454.0,0.13743625]
[1768611496746,0.01047581,95458.0,95454.0,0.18981748]
[1768611496951,0.01047581,95458.0,95454.0,0.13743625]
[1768611497416,0.06285501,95458.0,95454.0,0.13743625]
[1768611497632,0.01047581,95458.0,95454.0,0.13743625]
[1768611498355,0.01047581,95458.0,95454.0,0.18981729]
[1768611498558,0.01047581,95458.0,95455.0,0.01047614]
[1768611500805,0.01047559,95460.0,95456.0,0.01047603]
[1768611501212,0.0628536,95460.0,95456.0,0.01047603]
[1768611501414,0.01047559,95460.0,95456.0,0.01047603]
[1768611502318,0.01047559,95460.0,95457.0,0.01047592]
[1768611505383,0.0104757,95459.0,95456.0,0.01047603]
[1768611506358,0.01047559,95460.0,95456.0,0.01047603]
[1768611506739,0.06285364,95460.0,95456.0,0.01047603]
[1768611506939,0.01047559,95460.0,95456.0,0.01047603]
[1768611507161,0.01047559,95460.0,95456.0,0.06285607]
[1768611507379,0.01047559,95460.0,95456.0,0.01047603]
[1768611507575,0.01047548,95461.0,95457.0,0.01047592]
[1768611507734,0.0628529,95461.0,95457.0,0.01047592]
[1768611508327,0.01047559,95460.0,95457.0,0.01047592]
[1768611509729,0.01047548,95461.0,95457.0,0.01047592]
[1768611510633,0.01047559,95460.0,95455.0,0.01047614]
[1768611510774,0.0104757,95459.0,95456.0,0.01047603]
[1768611511519,0.01047581,95458.0,95455.0,0.01047614]
[1768611511720,0.06285487,95458.0,95455.0,0.01047614]
[1768611512075,0.01047581,95458.0,95454.0,0.01047625]
[1768611512296,0.0104757,95459.0,95455.0,0.01047614]
[1768611512900,0.01047559,95460.0,95457.0,0.01047592]
[1768611513106,0.01047559,95460.0,95455.0,0.01047614]
[1768611513917,0.01047559,95460.0,95456.0,0.01047603]
[1768611514139,0.0104757,95459.0,95456.0,0.01047603]
[1768611514590,0.01047559,95460.0,95456.0,0.06285566]
[1768611514891,0.01047559,95460.0,95456.0,0.01047603]
[1768611515049,0.06285372,95460.0,95456.0,0.01047603]
[1768611515910,0.0104757,95459.0,95456.0,0.01047603]
[1768611516110,0.01047559,95460.0,95456.0,0.01047603]
[1768611516495,0.0104757,95459.0,95456.0,0.01047603]
[1768611516703,0.0104757,95459.0,95455.0,0.01047614]
[1768611516920,0.01047581,95458.0,95455.0,0.01047614]
[1768611518283,0.0628549,95458.0,95454.0,0.01047625]
[1768611518719,0.01047581,95458.0,95454.0,0.01047625]
[1768611518920,0.01047581,95458.0,95455.0,0.01047614]
[1768611521326,0.01047581,95458.0,95453.0,0.13743636]
[1768611521327,0.01047592,95457.0,95453.0,0.12696]
[1768611521499,0.01047603,95456.0,95453.0,0.12696]
[1768611521702,0.01047603,95456.0,95453.0,0.13743636]
[1768611521875,0.01047603,95456.0,95453.0,0.13739101]
[1768611522490,0.01047581,95458.0,95454.0,0.06285714]
[1768611522688,0.01047581,95458.0,95454.0,0.01047625]
[1768611522900,0.01047581,95458.0,95454.0,0.06285744]
[1768611523307,0.01047581,95458.0,95454.0,0.01047625]
[1768611523513,0.01047559,95460.0,95456.0,0.06285602]
[1768611523768,0.01047559,95460.0,95456.0,0.01043068]
[1768611524204,0.01047559,95460.0,95456.0,0.06281077]
[1768611524600,0.01047559,95460.0,95456.0,0.01043068]
[1768611524803,0.01047559,95460.0,95457.0,0.01047592]
[1768611525004,0.01047559,95460.0,95456.0,0.01043068]
[1768611525005,0.0104757,95459.0,95455.0,0.01047614]
[1768611525244,0.01047559,95460.0,95456.0,0.01047603]
[1768611525447,0.01047559,95460.0,95456.0,0.01043068]
[1768611526236,0.01047559,95460.0,95456.0,0.01038533]
[1768611526839,0.01047581,95458.0,95455.0,0.01047614]
[1768611527034,0.0104757,95459.0,95455.0,0.01047614]
[1768611527243,0.01047581,95458.0,95455.0,0.01047614]
[1768611527682,0.01047592,95457.0,95454.0,0.01047625]
[1768611527878,0.0104757,95459.0,95455.0,0.01047614]
[1768611528255,0.06285439,95459.0,95455.0,0.01047614]
[1768611528783,0.01047625,95454.0,95447.0,0.01047603]
[1768611529015,0.01047625,95454.0,95441.0,0.04744815]
[1768611529016,0.06285997,95451.0,95446.0,0.12696]
[1768611529209,0.01047657,95451.0,95447.0,0.01047701]
[1768611529627,0.01047657,95451.0,95447.0,0.06286172]
[1768611529802,0.01047657,95451.0,95447.0,0.01047701]
[1768611529972,0.06285947,95451.0,95447.0,0.01047701]
[1768611530173,0.06285947,95451.0,95446.0,0.17934551]
[1768611530174,0.05238358,95450.0,95446.0,0.13743712]
[1768611530812,0.06285948,95451.0,95446.0,0.13743712]
[1768611531256,0.01047636,95453.0,95447.0,0.06286195]
[1768611531565,0.01047636,95453.0,95448.0,0.01096611]
[1768611532491,0.01047636,95453.0,95450.0,0.01047668]
[1768611532687,0.01052566,95454.0,95450.0,0.06286007]
[1768611533284,0.01052566,95454.0,95449.0,0.01047679]
[1768611533486,0.06290704,95454.0,95449.0,0.01047679]
[1768611533699,0.01047636,95453.0,95450.0,0.01047668]
[1768611533974,0.01047657,95451.0,95448.0,0.00048921]
[1768611534186,0.05238399,95449.0,95448.0,0.00048921]
[1768611534575,0.05238349,95450.0,95448.0,0.00048921]
[1768611535613,0.06285978,95451.0,95448.0,0.00048921]
[1768611535614,0.01047657,95451.0,95448.0,0.00048921]
[1768611536046,0.06285995,95451.0,95448.0,0.00048921]
[1768611536255,0.01047657,95451.0,95448.0,0.00048921]
[1768611537687,0.06285971,95451.0,95448.0,0.00048921]
[1768611538264,0.06285992,95451.0,95448.0,0.00048921]
[1768611538472,0.01047657,95451.0,95448.0,0.00048921]
[1768611538892,0.05238386,95450.0,95448.0,0.00048921]
[1768611539283,0.05238399,95449.0,95448.0,0.00048921]
[1768611539997,0.06286045,95451.0,95448.0,0.00048921]
[1768611540339,0.06286045,95451.0,95448.0,0.00044386]
[1768611541287,0.01047657,95451.0,95448.0,0.00044386]
[1768611541488,0.05238454,95448.0,95446.0,0.12696]
[1768611541928,0.06286092,95449.0,95446.0,0.12696]
[1768611542228,0.01047657,95451.0,95447.0,0.01047701]
[1768611542437,0.01047668,95450.0,95447.0,0.01047701]
[1768611543708,0.01047657,95451.0,95448.0,0.0104769]
[1768611543933,0.01047646,95452.0,95448.0,0.0104769]
[1768611544137,0.01047646,95452.0,95449.0,0.01047679]
[1768611544491,0.01047646,95452.0,95449.0,0.01043145]
[1768611544657,0.01047646,95452.0,95448.0,0.0104769]
[1768611544854,0.01047646,95452.0,95449.0,0.01047679]
[1768611545435,0.01047657,95451.0,95448.0,0.0104769]
[1768611546035,0.06285882,95452.0,95448.0,0.0104769]
[1768611546036,0.01047646,95452.0,95448.0,0.0104769]
[1768611546462,0.06285893,95452.0,95448.0,0.0104769]
[1768611546684,0.06285897,95452.0,95448.0,0.0104769]
[1768611546908,0.01047668,95450.0,95446.0,0.13743712]
[1768611547229,0.06286022,95450.0,95446.0,0.13743712]
[1768611547683,0.01047657,95451.0,95446.0,0.18982272]
[1768611547933,0.01047657,95451.0,95447.0,0.06286208]
[1768611548135,0.01047668,95450.0,95446.0,0.13743712]
[1768611548342,0.01047679,95449.0,95446.0,0.13743712]
[1768611548844,0.01047668,95450.0,95446.0,0.13743712]
[1768611549502,0.01047668,95450.0,95446.0,0.18982272]
[1768611549680,0.01047668,95450.0,95446.0,0.13743712]
[1768611550334,0.01047679,95449.0,95446.0,0.12696]
[1768611550540,0.01047668,95450.0,95446.0,0.13743712]
[1768611551694,0.01047668,95450.0,95447.0,0.01047701]
[1768611551896,0.01047657,95451.0,95447.0,0.01047701]
[1768611552407,0.01047668,95450.0,95446.0,0.13743712]
[1768611553284,0.01047679,95449.0,95446.0,0.12696]
[1768611554187,0.01047668,95450.0,95446.0,0.18982265]
[1768611554491,0.01047657,95451.0,95447.0,0.01047701]
[1768611554625,0.01047668,95450.0,95446.0,0.12696]
[1768611555915,0.06286026,95450.0,95446.0,0.12696]
[1768611556235,0.01047679,95449.0,95446.0,0.12696]
[1768611557319,0.06286102,95449.0,95446.0,0.12696]
[1768611557534,0.05238459,95448.0,95446.0,0.12696]
[1768611557812,0.02855255,95448.0,95446.0,0.12696]
[1768611558041,0.010478,95438.0,95432.0,0.17380251]
[1768611558276,0.010478,95438.0,95432.0,0.01047866]
[1768611558475,0.06286749,95439.0,95435.0,0.01047833]
[1768611558590,0.01047789,95439.0,95435.0,0.01047833]
[1768611558799,0.01047778,95440.0,95437.0,0.01047811]
[1768611560418,0.01047778,95440.0,95436.0,0.01047822]
[1768611560824,0.01047778,95440.0,95437.0,0.01047811]
[1768611561960,0.06287023,95435.0,95430.0,0.0001574]
[1768611562356,0.06287001,95435.0,95430.0,0.01063628]
[1768611562771,0.01047833,95435.0,95430.0,0.06303068]
[1768611563196,0.01047833,95435.0,95431.0,0.06287251]
[1768611564320,0.01047833,95435.0,95432.0,0.01047866]
[1768611564733,0.01047822,95436.0,95432.0,0.01047866]
[1768611565174,0.01047822,95436.0,95433.0,0.01047855]
[1768611565394,0.01047822,95436.0,95432.0,0.01047866]
[1768611565600,0.01047833,95435.0,95432.0,0.01047866]
[1768611565796,0.01047822,95436.0,95432.0,0.01047866]
[1768611566012,0.01047822,95436.0,95433.0,0.01047855]
[1768611566598,0.01047811,95437.0,95434.0,0.01047844]
[1768611567982,0.04553616,95433.0,95430.0,0.0001574]
[1768611568158,0.04553616,95433.0,95427.0,0.01047921]
[1768611568159,0.04553616,95432.0,95429.0,0.01047899]
[1768611568364,0.01047855,95433.0,95429.0,0.01047899]
[1768611568365,0.01047855,95433.0,95429.0,0.06287373]
[1768611568565,0.01047844,95434.0,95430.0,0.01047888]
[1768611569520,0.01047822,95436.0,95431.0,0.01047877]
[1768611569730,0.01047822,95436.0,95430.0,0.01047888]
[1768611569731,0.01047844,95434.0,95430.0,0.01047888]
[1768611570145,0.01047855,95433.0,95430.0,0.01047888]
[1768611570361,0.01047855,95433.0,95430.0,0.01043354]
[1768611573428,0.01047866,95432.0,95429.0,0.01047899]
[1768611574030,0.01047855,95433.0,95429.0,0.01047899]
[1768611574271,0.01047855,95433.0,95379.0,0.13181872]
[1768611574272,0.03986012,95431.0,95423.0,0.01047921]
[1768611574477,0.05239706,95426.0,95423.0,0.01047921]
[1768611574687,0.01047943,95425.0,95422.0,0.01047976]
[1768611575309,0.01047932,95426.0,95423.0,0.01047965]
[1768611575850,0.01047932,95426.0,95423.0,0.01095202]
[1768611576051,0.06287553,95427.0,95423.0,0.01095202]
[1768611576052,0.01047921,95427.0,95423.0,0.01095202]
[1768611576272,0.01047932,95426.0,95423.0,0.01095202]
[1768611576487,0.01047932,95426.0,95423.0,0.00047237]
[1768611576696,0.01047921,95427.0,95423.0,0.06335026]
[1768611577121,0.01047932,95426.0,95423.0,0.00047237]
[1768611577756,0.06287604,95426.0,95423.0,0.00047237]
[1768611577975,0.01047932,95426.0,95423.0,0.00047237]
[1768611578177,0.06287606,95426.0,95423.0,0.00047237]
[1768611578665,0.0104791,95428.0,95423.0,0.01095202]
[1768611578868,0.06287552,95427.0,95423.0,0.01095202]
[1768611579167,0.01047932,95426.0,95423.0,0.01095202]
[1768611579400,0.06287607,95426.0,95423.0,0.00047237]
[1768611581583,0.01047932,95426.0,95423.0,0.01095202]
[1768611582202,0.01047932,95426.0,95421.0,0.01063727]
[1768611582203,0.01048031,95417.0,95412.0,0.05240388]
[1768611582433,0.01048009,95419.0,95415.0,0.01048053]
[1768611582627,0.01048009,95419.0,95413.0,0.01048075]
[1768611582628,0.0104802,95418.0,95413.0,0.01048075]
[1768611582848,0.01048042,95416.0,95412.0,0.04831561]
[1768611583260,0.01048053,95415.0,95412.0,0.05879647]
[1768611583704,0.01048042,95416.0,95412.0,0.05879647]
[1768611583901,0.06288327,95415.0,95412.0,0.04831561]
[1768611585632,0.06288365,95415.0,95412.0,0.04831561]
[1768611585778,0.05240334,95414.0,95412.0,0.04831561]
[1768611586351,0.01048053,95415.0,95412.0,0.04831561]
[1768611586682,0.0628832,95415.0,95412.0,0.04831561]
[1768611586879,0.01048031,95417.0,95412.0,0.04831561]
[1768611587102,0.0104802,95418.0,95414.0,0.01048064]
[1768611587298,0.01048031,95417.0,95414.0,0.01048064]
[1768611588628,0.01047976,95422.0,95414.0,0.01048064]
[1768611588629,0.01047954,95424.0,95417.0,0.01048031]
[1768611588994,0.02095963,95442.0,95419.0,0.04825629]
[1768611589205,0.01047888,95430.0,95426.0,0.04014036]
[1768611589353,0.01047888,95430.0,95426.0,0.05005062]
[1768611589537,0.01047899,95429.0,95426.0,0.0395713]
[1768611589734,0.0104791,95428.0,95425.0,0.01047943]
[1768611589960,0.0104791,95428.0,95425.0,0.05873572]
[1768611590282,0.01047899,95429.0,95426.0,0.01047932]
[1768611590439,0.01047899,95429.0,95425.0,0.01047943]
[1768611591778,0.062874,95429.0,95425.0,0.01047943]
[1768611591949,0.01047888,95430.0,95426.0,0.06287578]
[1768611592762,0.01047899,95429.0,95425.0,0.01047943]
[1768611592967,0.01047899,95429.0,95424.0,0.06287704]
[1768611592968,0.01047899,95429.0,95424.0,0.01047954]
[1768611593170,0.01047921,95427.0,95424.0,0.01047954]
[1768611593570,0.06287534,95427.0,95423.0,0.01047965]
[1768611593990,0.01047932,95426.0,95423.0,0.01047965]
[1768611594225,0.062876,95426.0,95422.0,0.01047976]
[1768611594749,0.01047943,95425.0,95422.0,0.01047976]
[1768611595399,0.06287665,95425.0,95421.0,0.04652704]
[1768611595571,0.01047954,95424.0,95421.0,0.04652704]
[1768611595784,0.06287756,95424.0,95421.0,0.04652704]
[1768611596332,0.05239833,95423.0,95421.0,0.04652704]
[1768611596608,0.01047954,95424.0,95421.0,0.05700691]
[1768611596757,0.01047954,95424.0,95421.0,0.04652704]
[1768611597142,0.01047954,95424.0,95421.0,0.05700691]
[1768611597952,0.01047976,95422.0,95418.0,0.0104802]
[1768611598771,0.06287858,95422.0,95418.0,0.0104802]
[1768611599198,0.01047976,95422.0,95418.0,0.06288117]
[1768611599934,0.01047976,95422.0,95419.0,0.01048009]
[1768611600381,0.01047976,95422.0,95415.0,0.13748053]
[1768611600382,0.0104802,95418.0,95415.0,0.13748053]
[1768611600589,0.0104802,95418.0,95415.0,0.18400757]
[1768611600762,0.01047998,95420.0,95416.0,0.06288253]
[1768611600989,0.01047998,95420.0,95415.0,0.18400757]
[1768611600990,0.01048009,95419.0,95415.0,0.13748053]
[1768611601113,0.01047954,95424.0,95416.0,0.01048042]
[1768611601318,0.05239993,95420.0,95416.0,0.01048042]
[1768611601726,0.01047954,95424.0,95417.0,0.06288187]
[1768611601727,0.01047987,95421.0,95417.0,0.06288187]
[1768611601929,0.05239867,95423.0,95418.0,0.06288108]
[1768611602131,0.05239867,95423.0,95419.0,0.01048009]
[1768611602132,0.01047965,95423.0,95419.0,0.01048009]
[1768611602497,0.01047998,95420.0,95410.0,0.04652704]
[1768611602691,0.01047998,95420.0,95411.0,0.01063837]
[1768611602692,0.01048031,95417.0,95411.0,0.01063837]
[1768611602900,0.01048009,95419.0,95415.0,0.01048053]
[1768611603105,0.01047998,95420.0,95416.0,0.01048042]
[1768611604760,0.01047998,95420.0,95417.0,0.01048031]
[1768611604968,0.01047965,95423.0,95418.0,0.0104802]
[1768611605149,0.01047976,95422.0,95419.0,0.01048009]
[1768611605564,0.01047965,95423.0,95418.0,0.0104802]
[1768611605771,0.01047965,95423.0,95420.0,0.01047998]
[1768611605980,0.01047976,95422.0,95419.0,0.01048009]
[1768611606193,0.01047987,95421.0,95417.0,0.01048031]
[1768611606418,0.01047998,95420.0,95416.0,0.01048042]
[1768611607280,0.01047976,95422.0,95418.0,0.0104802]
[1768611607491,0.01047976,95422.0,95419.0,0.01048009]
[1768611608127,0.01047965,95423.0,95419.0,0.01048009]
[1768611608770,0.30545233,95430.0,95421.0,0.01047987]
[1768611608978,0.01047921,95427.0,95423.0,0.01047965]
[1768611609400,0.01047899,95429.0,95425.0,0.01047943]
[1768611609633,0.01047899,95429.0,95426.0,0.01047932]
[1768611609842,0.01047899,95429.0,95426.0,0.00935364]
[1768611610061,0.00203057,95426.0,95425.0,0.01047943]
[1768611610277,0.00203057,95426.0,95423.0,0.01047965]
[1768611610488,0.01250989,95426.0,95423.0,0.01047965]
[1768611610986,0.01250989,95426.0,95421.0,0.06287913]
[1768611610987,0.01047943,95425.0,95421.0,0.01047987]
[1768611611201,0.01047943,95425.0,95421.0,0.06287913]
[1768611611640,0.00203057,95426.0,95423.0,0.01047965]
[1768611613394,0.06490654,95426.0,95422.0,0.01047976]
[1768611613711,0.00203057,95426.0,95423.0,0.01047965]
[1768611613914,0.00203057,95426.0,95423.0,0.06287787]
[1768611614322,0.00203057,95426.0,95423.0,0.01047965]
[1768611615464,0.00203057,95426.0,95423.0,0.06287783]
[1768611615690,0.00203057,95426.0,95423.0,0.01047965]
[1768611616511,0.01250989,95426.0,95423.0,0.01047965]
[1768611617913,0.01250989,95426.0,95422.0,0.01047976]
[1768611618587,0.06490662,95426.0,95422.0,0.01047976]
[1768611619138,0.01047943,95425.0,95422.0,0.01047976]
[1768611619348,0.01047943,95425.0,95421.0,0.01047987]
[1768611619349,0.06287664,95425.0,95421.0,0.01047987]
[1768611620417,0.01047954,95424.0,95421.0,0.01047987]
[1768611620798,0.06287739,95424.0,95419.0,0.06288049]
[1768611621499,0.06287726,95424.0,95420.0,0.01047998]
[1768611621943,0.01047965,95423.0,95420.0,0.01047998]
[1768611622266,0.01047976,95422.0,95419.0,0.01048009]
[1768611625033,0.06287726,95424.0,95420.0,0.01047998]
[1768611625034,0.01047954,95424.0,95420.0,0.01047998]
[1768611625260,0.01047954,95424.0,95420.0,0.06287977]
[1768611626106,0.01047954,95424.0,95421.0,0.01047987]
[1768611627328,0.01047965,95423.0,95419.0,0.01048009]
[1768611627875,0.06287803,95423.0,95419.0,0.01048009]
[1768611628084,0.01047976,95422.0,95419.0,0.01048009]
[1768611629973,0.01038906,95422.0,95419.0,0.01048009]
[1768611630589,0.06278791,95422.0,95419.0,0.01048009]
[1768611630738,0.06278791,95422.0,95417.0,0.06288163]
[1768611630933,0.06278791,95422.0,95417.0,0.01048031]
[1768611630934,0.0628795,95421.0,95417.0,0.01048031]
[1768611631185,0.01047987,95421.0,95417.0,0.01048031]
[1768611631810,0.06287923,95421.0,95417.0,0.01048031]
[1768611632132,0.01048009,95419.0,95415.0,0.01048053]
[1768611632248,0.0104802,95418.0,95415.0,0.01048053]
[1768611634290,0.06288127,95418.0,95413.0,0.06288437]
[1768611634472,0.01048031,95417.0,95413.0,0.01048075]
[1768611634671,0.01048031,95417.0,95413.0,0.06288449]
[1768611635143,0.06288189,95417.0,95413.0,0.01048075]
[1768611635450,0.06288189,95417.0,95413.0,0.05723084]
[1768611635637,0.01048042,95416.0,95412.0,0.01054018]
[1768611636351,0.01048042,95416.0,95412.0,0.06294445]
[1768611637330,0.01048042,95416.0,95413.0,0.01048075]
[1768611637630,0.01048009,95419.0,95415.0,0.06288308]
[1768611637798,0.01048009,95419.0,95415.0,0.06288312]
[1768611637999,0.01047998,95420.0,95416.0,0.01048042]
[1768611638217,0.01047998,95420.0,95417.0,0.01048031]
[1768611638619,0.01047998,95420.0,95416.0,0.01048042]
[1768611638836,0.01047987,95421.0,95418.0,0.0104802]
[1768611639260,0.01047998,95420.0,95417.0,0.01048031]
[1768611640529,0.01047998,95420.0,95416.0,0.01048042]
[1768611640530,0.01048009,95419.0,95416.0,0.01048042]
[1768611641538,0.17939512,95429.0,95425.0,0.04140254]
[1768611641688,0.0104791,95428.0,95425.0,0.03613876]
[1768611641888,0.04926751,95441.0,95425.0,0.03613876]
[1768611641889,0.06287311,95431.0,95427.0,0.01047921]
[1768611642091,0.01047877,95431.0,95427.0,0.01047921]
[1768611642318,0.01047877,95431.0,95427.0,0.0628751]
[1768611642499,0.01047877,95431.0,95427.0,0.01047921]
[1768611642680,0.127,95433.0,95428.0,0.05722919]
[1768611642891,0.06287042,95436.0,95431.0,0.05722886]
[1768611643552,0.01047844,95434.0,95431.0,0.04675009]
[1768611643879,0.01047844,95434.0,95430.0,0.01047888]
[1768611644086,0.01047844,95434.0,95430.0,0.06287317]
[1768611645020,0.01047844,95434.0,95430.0,0.06279416]
[1768611645701,0.01047844,95434.0,95431.0,0.01047877]
[1768611646250,0.01047833,95435.0,95431.0,0.06287262]
[1768611646998,0.06286963,95436.0,95431.0,0.06287262]
[1768611646999,0.01047822,95436.0,95432.0,0.01047866]
[1768611647224,0.01047833,95435.0,95432.0,0.01047866]
[1768611649403,0.01047833,95435.0,95430.0,0.01039987]
[1768611650565,0.06287009,95435.0,95430.0,0.06279424]
[1768611651158,0.01047844,95434.0,95430.0,0.01039987]
[1768611651375,0.01047855,95433.0,95430.0,0.01047888]
[1768611652142,0.01047822,95436.0,95431.0,0.01047877]
[1768611652302,0.01047833,95435.0,95432.0,0.01047866]
[1768611652870,0.01047833,95435.0,95431.0,0.01047877]
[1768611653118,0.06287018,95435.0,95431.0,0.01047877]
[1768611653321,0.01047844,95434.0,95431.0,0.01047877]
[1768611653531,0.01047855,95433.0,95430.0,0.01047888]
[1768611655151,0.01047844,95434.0,95430.0,0.01047888]
[1768611655152,0.01047844,95434.0,95431.0,0.01047877]
[1768611655606,0.01047833,95435.0,95431.0,0.01047877]
[1768611657325,0.06287055,95435.0,95431.0,0.01047877]
[1768611657726,0.01047833,95435.0,95431.0,0.01047877]
[1768611658131,0.01047822,95436.0,95432.0,0.01047866]
[1768611658553,0.01047833,95435.0,95432.0,0.01047866]
[1768611659131,0.01047822,95436.0,95432.0,0.01047866]
[1768611659318,0.01047833,95435.0,95432.0,0.01047866]
[1768611659532,0.01047833,95435.0,95431.0,0.01047877]
[1768611659737,0.01047833,95435.0,95432.0,0.01047866]
[1768611659999,0.01047822,95436.0,95432.0,0.01047866]
[1768611660721,0.01047833,95435.0,95431.0,0.01047877]
[1768611660915,0.01047844,95434.0,95431.0,0.01047877]
[1768611661454,0.01047833,95435.0,95431.0,0.06287251]
[1768611661653,0.01047833,95435.0,95431.0,0.01047877]
[1768611662444,0.0628701,95435.0,95431.0,0.01047877]
[1768611662646,0.01047844,95434.0,95431.0,0.01047877]
[1768611664754,0.01047833,95435.0,95431.0,0.01047877]
[1768611665158,0.06287019,95435.0,95431.0,0.01047877]
[1768611665594,0.06287007,95435.0,95431.0,0.01047877]
[1768611666430,0.01047844,95434.0,95431.0,0.01047877]
[1768611668513,0.05239032,95438.0,95430.0,0.06287322]
[1768611668514,0.0523895,95439.0,95435.0,0.01047833]
[1768611668691,0.01047778,95440.0,95437.0,0.01047811]
[1768611669030,0.01047745,95443.0,95439.0,0.01047789]
[1768611669234,0.01047745,95443.0,95438.0,0.010478]
[1768611669235,0.01047756,95442.0,95438.0,0.010478]
[1768611669815,0.01047756,95442.0,95438.0,0.0628679]
[1768611670055,0.01047767,95441.0,95438.0,0.010478]
[1768611670353,0.01047756,95442.0,95438.0,0.010478]
[1768611670718,0.01047767,95441.0,95437.0,0.01047811]
[1768611670918,0.01047789,95439.0,95435.0,0.01047833]